{"text_format":"1","workbook":"xlsx","n_sheets":1,"sheets":["115"],"not_rendered":{"charts":0,"images":0,"macros":1,"external_links":0,"defined_names":3,"comments":0,"pivot_tables":0},"unopened":[],"bounds":{"document_bytes":16777216,"sheet_cells":100000,"rows_first":2000,"rows_last":500,"rows_between":2000,"halvings":0,"cell_chars":16384,"cell_head_chars":4096},"cells_cut":0,"cells_raw":0,"read":"whole","date_system":"1900"}

{"sheet":"115","index":0,"n_rows":36,"n_cols":16,"rows_kept":36,"cut":false,"hidden":false,"merged":[[5,14,6,14],[5,5,6,5],[4,5,4,8],[5,0,6,0],[5,1,6,1],[5,2,6,2],[5,3,6,3],[5,4,6,4],[5,6,6,6],[5,7,6,7],[5,8,6,8],[5,9,6,9],[5,10,6,10],[5,11,6,11],[5,12,6,12],[5,13,6,13],[0,0,0,14],[1,1,1,9],[1,10,1,13],[2,10,2,13],[3,5,3,8]]}
["-"]
[]
[]
[]
[null,null,null,null,null,"(дата, период проверки)"]
["№\nп/п","Воинское звание","Фамилия, имя, отчество","Номер тестового задания","Номер вопроса","Номер вопроса","Номер вопроса","Номер вопроса","Номер вопроса","Номер вопроса","Номер вопроса","Номер вопроса","Номер вопроса","Номер вопроса","Оценка уровня теоретической подготовленности "]
[]
[1,null,null,1,"+","+","+","+","+","+","+","+","+","+",5,{"$f":"COUNTIF(E8:N8,\"+\")","v":10}]
[2,null,null,2,"+","+","+","+","+","+","+","+","+","+",5,10]
[3,null,null,3,"+","+","+","+","+","+","-","+","+","-",4,8]
[4,null,null,4,"-","-","+","+","+","+","+","+","+","+",4,8]
[5,null,null,5,"-","+","+","-","-","+","+","+","+","+",3,7]
[6,null,null,6,"+","-","+","-","+","+","+","+","-","+",3,7]
[7,null,null,null,"-","-","-","-","-","-","-","-","-","+",2,1]
[8,null,null,null,"-","+","-","+","-","+","+","+","-","+",2,6]
[9,null,null,null,"-","-","-","-","-","-","+","-","-","-",2,1]
[10,null,null,null,"+","-","-","-","-","+","-","-","-","-",2,2]
[11,null,null,null,null,null,null,null,null,null,null,null,null,null,null,0]
[12,null,null,null,null,null,null,null,null,null,null,null,null,null,null,0]
[13,null,null,null,null,null,null,null,null,null,null,null,null,null,null,0]
[14,null,null,null,null,null,null,null,null,null,null,null,null,null,null,0]
[15,null,null,null,null,null,null,null,null,null,null,null,null,null,null,0]
[16,null,null,null,null,null,null,null,null,null,null,null,null,null,null,0]
[17,null,null,null,null,null,null,null,null,null,null,null,null,null,null,0]
[18,null,null,null,null,null,null,null,null,null,null,null,null,null,null,0]
[19,null,null,null,null,null,null,null,null,null,null,null,null,null,null,0]
[20,null,null,null,null,null,null,null,null,null,null,null,null,null,null,0]
[21,null,null,null,null,null,null,null,null,null,null,null,null,null,null,0]
[22,null,null,null,null,null,null,null,null,null,null,null,null,null,null,0]
[23,null,null,null,null,null,null,null,null,null,null,null,null,null,null,0]
[24,null,null,null,null,null,null,null,null,null,null,null,null,null,null,0]
[25,null,null,null,null,null,null,null,null,null,null,null,null,null,null,0]
[26,null,null,null,null,null,null,null,null,null,null,null,null,null,null,0]
[27,null,null,null,null,null,null,null,null,null,null,null,null,null,null,0]
[28,null,null,null,null,null,null,null,null,null,null,null,null,null,null,0]
[29,null,null,null,null,null,null,null,null,null,null,null,null,null,null,0]